bitfinex-derivatives/quotes_BTCF0:USTF0_20250911
["timestamp","ask_amount","ask_price","bid_price","bid_amount"]
[1757594652293,2.13908,113900.0,113890.0,0.4342101]
[1757594652496,3.30688,113900.0,113890.0,0.54464416]
[1757594652693,3.30688,113900.0,113890.0,0.41578406]
[1757594652902,3.30688,113900.0,113890.0,0.54464416]
[1757594653087,3.30688,113900.0,113890.0,0.62352995]
[1757594653291,3.30688,113900.0,113890.0,0.62353032]
[1757594653491,3.30688,113900.0,113890.0,0.49467022]
[1757594653693,3.30688,113900.0,113890.0,0.38423616]
[1757594653997,3.4357401,113900.0,113890.0,0.38423616]
[1757594654200,3.30688,113900.0,113890.0,0.38423616]
[1757594654594,2.2679401,113900.0,113890.0,0.38423616]
[1757594654797,3.305,113900.0,113890.0,0.38423616]
[1757594655194,3.305,113900.0,113890.0,0.51309626]
[1757594655400,2.13908,113900.0,113890.0,0.51309626]
[1757594655591,3.30432,113900.0,113890.0,0.54464416]
[1757594655791,1.77828,113900.0,113890.0,0.54464416]
[1757594655997,3.30408,113900.0,113890.0,0.54464416]
[1757594656198,2.94328,113900.0,113890.0,0.54464416]
[1757594656400,2.94328,113900.0,113890.0,0.55316596]
[1757594656593,0.43863927,113920.0,113910.0,0.05412]
[1757594656594,0.50709511,113920.0,113910.0,0.05412]
[1757594656794,1.67169511,113920.0,113910.0,0.1915019]
[1757594656995,1.53431321,113920.0,113910.0,0.1915019]
[1757594657306,1.53431321,113920.0,113910.0,0.16455406]
[1757594657595,0.3608,113920.0,113910.0,0.30193596]
[1757594657801,1.6623419,113920.0,113910.0,0.30193596]
[1757594658103,1.52496,113920.0,113910.0,0.38077131]
[1757594658299,1.8097238,113920.0,113910.0,0.16655406]
[1757594658504,1.66373865,113920.0,113910.0,0.05612]
[1757594658696,1.65773865,113920.0,113910.0,0.05512]
[1757594658999,1.66173865,113920.0,113910.0,0.05612]
[1757594659197,1.67033472,113920.0,113910.0,0.13493822]
[1757594659499,1.66833472,113920.0,113910.0,0.05612]
[1757594659893,1.79711337,113920.0,113910.0,0.05612]
[1757594660100,1.66833472,113920.0,113910.0,0.05612]
[1757594660597,1.66833472,113920.0,113910.0,0.13493822]
[1757594661198,0.50417472,113920.0,113910.0,0.13493822]
[1757594661503,1.66585472,113920.0,113910.0,0.13493822]
[1757594661702,0.50417472,113920.0,113910.0,0.13493822]
[1757594661892,1.66585472,113920.0,113910.0,0.13493822]
[1757594662297,1.66537472,113920.0,113910.0,0.13493822]
[1757594664202,1.53659607,113920.0,113910.0,0.13493822]
[1757594664403,1.66537472,113920.0,113910.0,0.13493822]
[1757594665012,0.37539607,113920.0,113910.0,0.13493822]
[1757594665308,1.66413472,113920.0,113910.0,0.13493822]
[1757594665501,1.53535607,113920.0,113910.0,0.05612]
[1757594665806,1.66413472,113920.0,113910.0,0.05612]
[1757594666303,1.65553865,113920.0,113910.0,0.05612]
[1757594667705,1.6644471,113920.0,113910.0,0.05612]
[1757594668008,1.6644471,113920.0,113910.0,0.13493822]
[1757594668409,1.6644471,113920.0,113910.0,0.05612]
[1757594668612,1.6627671,113920.0,113910.0,0.05612]
[1757594668906,0.5044871,113920.0,113910.0,0.05612]
[1757594669112,1.6617671,113920.0,113910.0,0.05612]
[1757594669410,1.53298845,113920.0,113910.0,0.05612]
[1757594669608,1.6617671,113920.0,113910.0,0.05612]
[1757594670909,1.53298845,113920.0,113910.0,0.05612]
[1757594671304,1.6617671,113920.0,113910.0,0.05612]
[1757594672216,1.6617671,113920.0,113910.0,0.16655406]
[1757594672704,1.6617671,113920.0,113910.0,0.24532446]
[1757594672907,1.6617671,113920.0,113910.0,0.16655406]
[1757594673109,1.6617671,113920.0,113910.0,0.05612]
[1757594673318,1.53298845,113920.0,113910.0,0.05612]
[1757594673518,1.6617671,113920.0,113910.0,0.05612]
[1757594674409,1.6617671,113920.0,113910.0,0.13490676]
[1757594675416,1.52882845,113920.0,113910.0,0.16655406]
[1757594675724,1.52874845,113920.0,113910.0,0.16655406]
[1757594675920,1.6575271,113920.0,113910.0,0.16655406]
[1757594676423,1.52874845,113920.0,113910.0,0.16655406]
[1757594676625,1.6575271,113920.0,113910.0,0.16655406]
[1757594678223,1.6575271,113920.0,113910.0,0.05612]
[1757594678717,1.52874845,113920.0,113910.0,0.13496002]
[1757594679032,1.52874845,113920.0,113910.0,0.05612]
[1757594679220,1.6575271,113920.0,113910.0,0.05612]
[1757594680328,1.80350539,113920.0,113910.0,0.05612]
[1757594681426,1.80350539,113920.0,113910.0,0.13496002]
[1757594682427,1.80350539,113920.0,113910.0,0.05612]
[1757594683029,0.64646539,113920.0,113910.0,0.30293253]
[1757594683327,1.52002845,113920.0,113910.0,0.30293253]
[1757594683529,1.65740692,113920.0,113910.0,0.30293253]
[1757594684429,1.64849847,113920.0,113910.0,0.30293253]
[1757594684629,0.50017847,113920.0,113910.0,0.30293253]
[1757594684929,1.64841847,113920.0,113910.0,0.30293253]
[1757594685326,1.65715069,113920.0,113910.0,0.30293253]
[1757594685628,1.65627069,113920.0,113910.0,0.30293253]
[1757594686731,1.65627069,113920.0,113910.0,0.38194294]
[1757594687223,1.65627069,113920.0,113910.0,0.27150888]
[1757594687424,1.51889222,113920.0,113910.0,0.27150888]
[1757594687731,1.51889222,113920.0,113910.0,0.19249847]
[1757594687927,0.50891069,113920.0,113910.0,0.19249847]
[1757594688231,1.65443069,113920.0,113910.0,0.27150764]
[1757594690332,1.51705222,113920.0,113910.0,0.27150764]
[1757594690533,1.51705222,113920.0,113910.0,0.19249847]
[1757594690735,1.51705222,113920.0,113910.0,0.1341323]
[1757594690925,1.65443069,113920.0,113910.0,0.19249847]
[1757594691129,1.65443069,113920.0,113910.0,0.30293253]
[1757594691325,1.65443069,113920.0,113910.0,0.16555406]
[1757594691635,1.65443069,113920.0,113910.0,0.30293253]
[1757594692132,1.79180916,113920.0,113910.0,0.30293253]
[1757594692333,1.79180916,113920.0,113910.0,0.16555406]
[1757594692535,1.79180916,113920.0,113910.0,0.30293253]
[1757594692828,1.51705222,113920.0,113910.0,0.16555406]
[1757594693226,1.79180916,113920.0,113910.0,0.30293253]
[1757594693426,1.79180916,113920.0,113910.0,0.19249847]
[1757594693734,1.79180916,113920.0,113910.0,0.3031174]
[1757594693934,1.79180916,113920.0,113910.0,0.16573893]
[1757594694329,1.79180916,113920.0,113910.0,0.3031174]
[1757594694628,1.51705222,113920.0,113910.0,0.3031174]
[1757594695031,1.79180916,113920.0,113910.0,0.3031174]
[1757594695727,1.79180916,113920.0,113910.0,0.16573893]
[1757594695929,1.79180916,113920.0,113910.0,0.3031174]
[1757594696336,1.60863455,113920.0,113910.0,0.16573893]
[1757594697738,1.51705222,113920.0,113910.0,0.16573893]
[1757594697939,1.60863455,113920.0,113910.0,0.16573893]
[1757594698136,0.46311455,113920.0,113910.0,0.05512]
[1757594698330,1.60211455,113920.0,113910.0,0.05512]
[1757594698731,1.51053222,113920.0,113910.0,0.05512]
[1757594698945,1.60211455,113920.0,113910.0,0.05512]
[1757594699539,1.59234233,113920.0,113910.0,0.14670233]
[1757594699739,1.50076,113920.0,113910.0,0.22571664]
[1757594699931,1.50076,113920.0,113910.0,0.14670233]
[1757594700339,1.59234233,113920.0,113910.0,0.14670233]
[1757594700539,0.45438233,113920.0,113910.0,0.14670233]
[1757594700838,1.50056,113920.0,113910.0,0.14670233]
[1757594701035,1.50056,113920.0,113910.0,0.25732126]
[1757594701530,0.002,113920.0,113910.0,0.67791522]
[1757594701729,2.13144,113940.0,113930.0,0.05253]
[1757594701934,0.3608,113960.0,113930.0,0.25472151]
[1757594701935,0.3608,113950.0,113930.0,0.25472151]
[1757594702131,0.3608,113950.0,113940.0,0.05253]
[1757594702132,0.45238233,113950.0,113940.0,0.05253]
[1757594702325,0.45238233,113950.0,113940.0,0.16313918]
[1757594702326,1.58866233,113950.0,113940.0,0.16313918]
[1757594702536,1.49708,113950.0,113940.0,0.16313918]
[1757594702737,1.58866233,113950.0,113940.0,0.05253]
[1757594702936,1.59729646,113950.0,113940.0,0.05253]
[1757594703331,1.59929646,113950.0,113940.0,0.05253]
[1757594703741,1.50771413,113950.0,113940.0,0.05253]
[1757594703941,1.59929646,113950.0,113940.0,0.13139346]
[1757594704144,1.50771413,113950.0,113940.0,0.22297579]
[1757594704441,1.50971413,113950.0,113940.0,0.13239346]
[1757594704831,1.60129646,113950.0,113940.0,0.13239346]
[1757594705035,1.50971413,113950.0,113940.0,0.13239346]
[1757594705237,1.60129646,113950.0,113940.0,0.13239346]
[1757594705638,1.60029646,113950.0,113940.0,0.13239346]
[1757594705831,1.50871413,113950.0,113940.0,0.22397579]
[1757594706134,1.50771413,113950.0,113940.0,0.22397579]
[1757594706334,1.59929646,113950.0,113940.0,0.13239346]
[1757594706738,1.59829646,113950.0,113940.0,0.13139346]
[1757594707142,0.3618,113950.0,113940.0,0.13139346]
[1757594707345,0.3618,113950.0,113940.0,0.31446788]
[1757594707536,0.3608,113950.0,113940.0,0.31446788]
[1757594707842,1.4934,113950.0,113940.0,0.23669466]
[1757594708352,0.3608,113950.0,113940.0,0.23669466]
[1757594708641,1.49292,113950.0,113940.0,0.23669466]
[1757594709335,1.49228,113950.0,113940.0,0.3154036]
[1757594710042,0.3608,113950.0,113940.0,0.3154036]
[1757594710246,1.49176,113950.0,113940.0,0.3154036]
[1757594710745,0.3608,113950.0,113940.0,0.3154036]
[1757594710942,1.49176,113950.0,113940.0,0.3154036]
[1757594712041,1.49176,113950.0,113940.0,0.13223894]
[1757594712551,1.49176,113950.0,113940.0,0.3154036]
[1757594712938,1.49176,113950.0,113940.0,0.13223894]
[1757594713239,1.49176,113950.0,113940.0,0.3154036]
[1757594713436,0.36951525,113960.0,113940.0,0.3154036]
[1757594713437,0.3608,113960.0,113940.0,0.3154036]
[1757594713635,0.3608,113960.0,113950.0,0.20702505]
[1757594713838,1.48936,113960.0,113950.0,0.14411233]
[1757594714035,0.3608,113960.0,113950.0,0.05253]
[1757594714242,1.48912,113960.0,113950.0,0.13123894]
[1757594714447,1.58070233,113960.0,113950.0,0.13123894]
[1757594714641,1.58070233,113960.0,113950.0,0.22282127]
[1757594714850,1.58170233,113960.0,113950.0,0.14411233]
[1757594715145,1.58270233,113960.0,113950.0,0.14411233]
[1757594715653,1.49112,113960.0,113950.0,0.05253]
[1757594715841,1.67428466,113960.0,113950.0,0.05253]
[1757594716036,1.58270233,113960.0,113950.0,0.05253]
[1757594716349,1.49112,113960.0,113950.0,0.05253]
[1757594716541,1.58270233,113960.0,113950.0,0.14411233]
[1757594716741,0.3628,113960.0,113950.0,0.14411233]
[1757594716949,1.58094233,113960.0,113950.0,0.14411233]
[1757594717437,1.58094233,113960.0,113950.0,0.22282127]
[1757594718942,1.58094233,113960.0,113950.0,0.13123894]
[1757594719143,1.58094233,113960.0,113950.0,0.22282127]
[1757594719850,1.58094233,113960.0,113950.0,0.14411233]
[1757594720047,1.57890233,113960.0,113950.0,0.05253]
[1757594720348,1.57890233,113960.0,113950.0,0.14411233]
[1757594720544,1.21810233,113960.0,113950.0,0.14411233]
[1757594720745,1.21810233,113960.0,113950.0,0.22282127]
[1757594720948,1.12648,113960.0,113950.0,0.22282127]
[1757594722247,1.21806233,113960.0,113950.0,0.22282127]
[1757594722447,1.57886233,113960.0,113950.0,0.13123894]
[1757594723239,1.57886233,113960.0,113950.0,0.05253]
[1757594723841,1.57886233,113960.0,113950.0,0.14411233]
[1757594724348,1.48728,113960.0,113950.0,0.14411233]
[1757594724548,1.57886233,113960.0,113950.0,0.14411233]
[1757594724853,1.57886233,113960.0,113950.0,0.05253]
[1757594725055,1.57886233,113960.0,113950.0,0.13123894]
[1757594725247,1.48728,113960.0,113950.0,0.13123894]
[1757594725448,1.57886233,113960.0,113950.0,0.14000894]
[1757594725654,0.45438233,113960.0,113950.0,0.23159127]
[1757594725845,1.48356,113960.0,113950.0,0.14000894]
[1757594726047,1.48356,113960.0,113950.0,0.23159127]
[1757594726246,1.48356,113960.0,113950.0,0.14000894]
[1757594726453,1.48356,113960.0,113950.0,0.23159127]
[1757594726655,1.57514233,113960.0,113950.0,0.14000894]
[1757594726854,1.57514233,113960.0,113950.0,0.23159127]
[1757594727152,0.45438233,113960.0,113950.0,0.23159127]
[1757594727351,1.57418233,113960.0,113950.0,0.23159127]
[1757594728048,1.4826,113960.0,113950.0,0.23159127]
[1757594728751,0.3628,113960.0,113950.0,0.23159127]
[1757594728946,1.48208,113960.0,113950.0,0.23159127]
[1757594729551,0.3628,113960.0,113950.0,0.23159127]
[1757594729751,1.57318233,113960.0,113950.0,0.23159127]
[1757594730348,1.4816,113960.0,113950.0,0.23159127]
[1757594730548,1.48064,113960.0,113950.0,0.23159127]
[1757594730748,1.48064,113960.0,113950.0,0.14000894]
[1757594730950,1.48064,113960.0,113950.0,0.23159127]
[1757594731253,1.48064,113960.0,113950.0,0.14000894]
[1757594731448,1.47988,113960.0,113950.0,0.14000894]
[1757594731642,0.3628,113960.0,113950.0,0.23159127]
[1757594731847,1.47964,113960.0,113950.0,0.14000894]
[1757594732146,1.47952,113960.0,113950.0,0.23159127]
[1757594732856,1.47952,113960.0,113950.0,0.15288233]
[1757594733050,0.3628,113960.0,113950.0,0.15288233]
[1757594733249,1.47876,113960.0,113950.0,0.15288233]
[1757594733446,1.4786,113960.0,113950.0,0.15288233]
[1757594733641,0.3628,113960.0,113950.0,0.48176217]
[1757594733848,1.4786,113960.0,113950.0,0.48176217]
[1757594734153,1.1178,113960.0,113950.0,0.48176217]
[1757594734546,1.1178,113960.0,113950.0,0.51349151]
[1757594734749,1.11692,113960.0,113950.0,0.51349151]
[1757594734949,1.11692,113960.0,113950.0,0.42190918]
[1757594735149,1.47772,113960.0,113950.0,0.51349151]
[1757594735353,1.47772,113960.0,113950.0,0.40288233]
[1757594735853,1.47772,113960.0,113950.0,0.42190918]
[1757594736157,1.47772,113960.0,113950.0,0.40288233]
[1757594736657,1.47772,113960.0,113950.0,0.3113]
[1757594737050,1.47772,113960.0,113950.0,0.51349151]
[1757594737251,1.47772,113960.0,113950.0,0.42190918]
[1757594737551,1.47772,113960.0,113950.0,0.51349151]
[1757594738550,1.4764,113960.0,113950.0,0.51349151]
[1757594738750,0.3628,113960.0,113950.0,0.69281084]
[1757594738956,0.3608,113980.0,113970.0,0.05259]
[1757594739157,1.47284,113990.0,113980.0,0.05259]
[1757594739461,1.47284,113990.0,113980.0,0.14417233]
[1757594739661,1.47284,113990.0,113980.0,0.05259]
[1757594739853,1.47284,113990.0,113980.0,0.13145195]
[1757594739854,1.56442233,113990.0,113980.0,0.13145195]
[1757594740056,1.47284,113990.0,113980.0,0.22303428]
[1757594740362,1.47284,113990.0,113980.0,0.21603428]
[1757594740952,1.47284,113990.0,113980.0,0.12445195]
[1757594741149,1.56442233,113990.0,113980.0,0.12445195]
[1757594741459,1.81442233,113990.0,113980.0,0.13322195]
[1757594742055,1.81442233,113990.0,113980.0,0.10064195]
[1757594742056,1.90600466,113990.0,113980.0,0.10064195]
[1757594742464,1.90600466,113990.0,113980.0,0.10764195]
[1757594742856,1.90600466,113990.0,113980.0,0.17067794]
[1757594743056,0.3608,113990.0,113980.0,0.21597832]
[1757594743251,0.3608,113990.0,113980.0,0.52335022]
[1757594743456,0.3608,114020.0,114010.0,0.05259]
[1757594743658,1.30075512,114030.0,114020.0,0.05259]
[1757594743955,1.3648807,114030.0,114010.0,0.07877183]
[1757594744161,0.81516466,114020.0,114010.0,0.07877183]
[1757594744361,0.81516466,114020.0,114010.0,0.06295368]
[1757594744954,1.92336466,114020.0,114010.0,0.06295368]
[1757594745156,1.92336466,114020.0,114010.0,0.11554368]
[1757594745157,1.49008,114020.0,114010.0,0.11554368]
[1757594745360,1.58166233,114020.0,114010.0,0.11554368]
[1757594745556,1.67324466,114020.0,114010.0,0.08296368]
[1757594745763,1.92324466,114020.0,114010.0,0.08296368]
[1757594746168,0.632,114020.0,114010.0,0.11554368]
[1757594746471,1.92268466,114020.0,114010.0,0.11554368]
[1757594746661,1.92268466,114020.0,114010.0,0.05259]
[1757594746863,1.92268466,114020.0,114010.0,0.11754368]
[1757594747364,1.92268466,114020.0,114010.0,0.02201]
[1757594748161,1.92268466,114020.0,114010.0,0.05459]
[1757594748564,0.632,114020.0,114010.0,0.05459]
[1757594748870,1.82998233,114020.0,114010.0,0.02201]
[1757594749068,1.92156466,114020.0,114010.0,0.002]
[1757594749571,1.92156466,114020.0,114010.0,0.06495368]
[1757594749769,1.7384,114020.0,114010.0,0.002]
[1757594749970,1.92156466,114020.0,114010.0,0.002]
[1757594750367,1.67156466,114020.0,114010.0,0.002]
[1757594750772,1.67156466,114020.0,114010.0,0.02201]
[1757594751872,0.382,114020.0,114010.0,0.02201]
[1757594752075,1.66996466,114020.0,114010.0,0.02201]
[1757594752467,1.57838233,114020.0,114010.0,0.02201]
[1757594752664,1.57838233,114020.0,114010.0,0.05459]
[1757594752865,0.47358233,114020.0,114010.0,0.05459]
[1757594753173,1.57702233,114020.0,114010.0,0.05459]
[1757594753391,1.66860466,114020.0,114010.0,0.05459]
[1757594753584,1.48544,114020.0,114010.0,0.05459]
[1757594753887,1.66792466,114020.0,114010.0,0.05459]
[1757594754088,0.47358233,114020.0,114010.0,0.05459]
[1757594754391,1.57554233,114020.0,114010.0,0.05459]
[1757594755482,1.57554233,114020.0,114010.0,0.02201]
[1757594755687,1.66712466,114020.0,114010.0,0.02201]
[1757594756387,1.75827446,114020.0,114010.0,0.05328]
[1757594756587,1.48396,114020.0,114010.0,0.05328]
[1757594756782,1.75827446,114020.0,114010.0,0.05328]
[1757594757385,0.65631446,114020.0,114010.0,0.05328]
[1757594757592,1.75607446,114020.0,114010.0,0.19043723]
[1757594757785,1.75607446,114020.0,114010.0,0.05328]
[1757594758476,1.48176,114020.0,114010.0,0.05328]
[1757594758677,1.75607446,114020.0,114010.0,0.02075]
[1757594758884,1.48176,114020.0,114010.0,0.02075]
[1757594759193,1.75607446,114020.0,114010.0,0.002]
[1757594759490,1.48176,114020.0,114010.0,0.002]
[1757594759684,1.75607446,114020.0,114010.0,0.002]
[1757594760786,3.91223169,114020.0,114010.0,0.002]
[1757594760987,0.02626,114010.0,114000.0,0.06295368]
[1757594761289,0.66137446,114010.0,113990.0,0.06295368]
[1757594761488,0.38706,114010.0,114000.0,0.06295368]
[1757594761689,1.84506,114010.0,113990.0,0.06295368]
[1757594761890,0.37696,114000.0,113990.0,0.08170368]
[1757594762490,0.65127446,114000.0,113990.0,0.09047368]
[1757594762694,0.90127446,114000.0,113990.0,0.00877]
[1757594762884,0.90127446,114000.0,113990.0,0.07166697]
[1757594762885,1.03843169,114000.0,113990.0,0.07166697]
[1757594763086,0.90127446,114000.0,113990.0,0.00977]
[1757594763281,1.99731446,114000.0,113990.0,0.07266697]
[1757594763794,2.13447169,114000.0,113990.0,0.00977]
[1757594763993,2.13447169,114000.0,113990.0,0.01077]
[1757594764294,1.99731446,114000.0,113990.0,0.01077]
[1757594765085,1.03843169,114000.0,113990.0,0.01077]
[1757594765283,1.99607446,114000.0,113990.0,0.01077]
[1757594765692,1.05643931,114000.0,113990.0,0.01077]
[1757594765891,0.91928208,114000.0,113990.0,0.01077]
[1757594766090,1.76356208,114000.0,113990.0,0.07366697]
[1757594766693,0.66928208,114000.0,113990.0,0.01077]
[1757594767194,1.76292208,114000.0,113990.0,0.01077]
[1757594768286,1.76296208,114000.0,113990.0,0.01077]
[1757594768695,0.39496762,114000.0,113990.0,0.06205]
[1757594768891,0.39496762,114000.0,113990.0,0.5121042]
[1757594769196,1.76164208,114000.0,113990.0,0.31205]
[1757594769493,1.76164208,114000.0,113990.0,0.37503233]
[1757594769791,1.76152208,114000.0,113990.0,0.31205]
[1757594769994,0.39496762,114000.0,113990.0,0.31205]
[1757594770196,1.76092208,114000.0,113990.0,0.31205]
[1757594770697,1.76092208,114000.0,113990.0,0.37503115]
[1757594771390,1.48660762,114000.0,113990.0,0.37503115]
[1757594771592,1.76092208,114000.0,113990.0,0.37503115]
[1757594772996,1.76092208,114000.0,113990.0,0.34250115]
[1757594773300,1.76092208,114000.0,113990.0,0.01077]
[1757594773499,1.76092208,114000.0,113990.0,0.07375935]
[1757594775690,1.76092208,114000.0,113990.0,0.12503935]
[1757594775988,0.53212485,114000.0,113990.0,0.12503935]
[1757594776188,0.53212485,114000.0,113990.0,0.26219658]
[1757594776189,1.48272762,114000.0,113990.0,0.26219658]
[1757594776398,0.39496762,114000.0,113990.0,0.44920723]
[1757594776697,0.01616,114010.0,114000.0,0.05128]
[1757594776886,0.01616,114010.0,114000.0,0.24052245]
[1757594776887,1.10356,114010.0,114000.0,0.24052245]
[1757594777192,1.10356,114010.0,114000.0,0.29894263]
[1757594777193,1.24071723,114010.0,114000.0,0.29894263]
[1757594777498,1.10356,114010.0,114000.0,0.1617854]
[1757594777797,1.10356,114010.0,114000.0,0.29894263]
[1757594777798,1.24071723,114010.0,114000.0,0.29894263]
[1757594777990,1.24071723,114010.0,114000.0,0.37767158]
[1757594778190,1.24071723,114010.0,114000.0,0.26716618]
[1757594778399,1.10356,114010.0,114000.0,0.26716618]
[1757594778584,1.24071723,114010.0,114000.0,0.18843723]
[1757594779405,0.01616,114010.0,114000.0,0.18843723]
[1757594779595,1.23935723,114010.0,114000.0,0.18843723]
[1757594779795,1.1022,114010.0,114000.0,0.18843723]
[1757594779990,1.60015723,114010.0,114000.0,0.05128]
[1757594780196,1.60015723,114010.0,114000.0,0.18843723]
[1757594780892,1.60015723,114010.0,114000.0,0.29894263]
[1757594781291,2.1298,114020.0,114000.0,0.43609986]
[1757594781496,2.28065723,114020.0,114010.0,0.26491245]
[1757594781691,2.1435,114020.0,114010.0,0.26491245]
[1757594781895,3.21408,114020.0,114010.0,0.51491245]
[1757594782597,3.21376,114020.0,114010.0,0.53541188]
[1757594782901,2.85396,114020.0,114010.0,0.89621188]
[1757594783100,1.77,114020.0,114010.0,1.03336911]
[1757594783298,2.85336,114020.0,114010.0,0.81749666]
[1757594783500,2.85336,114020.0,114010.0,0.92800206]
[1757594783899,0.001,114020.0,114010.0,1.06515929]
[1757594784104,1.08508,114020.0,114010.0,1.06515929]
[1757594784306,1.08508,114020.0,114010.0,0.95465389]
[1757594784507,1.08508,114020.0,114010.0,0.68910943]
[1757594784804,1.08508,114020.0,114010.0,1.04206603]
[1757594785000,1.08408,114020.0,114010.0,0.96342389]
[1757594785199,1.08508,114020.0,114010.0,0.68910943]
[1757594785398,1.08508,114020.0,114010.0,1.04204581]
[1757594785608,1.08508,114020.0,114010.0,0.96342389]
[1757594785801,0.002,114020.0,114010.0,1.18111379]
[1757594786009,0.38773551,114050.0,114010.0,1.64111379]
[1757594786304,1.08132,114040.0,114030.0,0.12765497]
[1757594787308,1.23217723,114040.0,114030.0,0.2648122]
[1757594787507,1.23517723,114040.0,114030.0,0.18619723]
[1757594787995,1.08432,114040.0,114030.0,0.18619723]
[1757594788202,1.08432,114040.0,114030.0,0.2490134]
[1757594788402,1.08432,114040.0,114030.0,0.18619723]
[1757594789210,1.08432,114040.0,114030.0,0.04904]
[1757594789398,1.08432,114040.0,114030.0,0.18619723]
[1757594790202,1.08432,114040.0,114030.0,0.24897688]
[1757594790407,1.08432,114040.0,114030.0,0.65196943]
[1757594790408,0.003,114040.0,114030.0,0.65196943]
[1757594790711,1.08132,114040.0,114030.0,0.65196943]
[1757594791010,1.08132,114040.0,114030.0,0.8756122]
[1757594791211,0.003,114040.0,114030.0,0.73845497]
[1757594791411,1.08072,114040.0,114030.0,0.8756122]
[1757594791803,1.08272,114040.0,114030.0,0.8756122]
[1757594792206,1.08272,114040.0,114030.0,0.93415446]
[1757594792405,1.08272,114040.0,114030.0,0.65984]
[1757594792615,1.08272,114040.0,114030.0,0.79699723]
[1757594792807,1.08272,114040.0,114030.0,0.43619723]
[1757594794007,0.005,114040.0,114030.0,0.79699723]
[1757594794409,1.08088,114040.0,114030.0,0.79699723]
[1757594794715,1.09458,114040.0,114030.0,0.43619723]
[1757594796120,1.97969446,114040.0,114030.0,0.04904]
[1757594796914,1.70538,114040.0,114030.0,0.04904]
[1757594797121,1.97969446,114040.0,114030.0,0.04904]
[1757594797425,1.70538,114040.0,114030.0,0.04904]
[1757594797622,1.97969446,114040.0,114030.0,0.04904]
[1757594797813,1.97969446,114040.0,114030.0,0.01814]
[1757594798013,1.97969446,114040.0,114030.0,0.08087722]
[1757594798322,1.98825446,114040.0,114030.0,0.06273722]
[1757594798721,1.98825446,114040.0,114020.0,0.08087722]
[1757594799020,0.51165723,114030.0,114020.0,0.11177722]
[1757594799221,0.3745,114030.0,114020.0,0.04904]
[1757594799519,0.6245,114030.0,114020.0,0.08968393]
[1757594799720,0.89881446,114030.0,114020.0,0.07154688]
[1757594799919,0.89881446,114030.0,114020.0,0.00877]
[1757594800922,0.90081446,114030.0,114020.0,0.00877]
[1757594801215,1.97245446,114030.0,114020.0,0.00877]
[1757594801622,0.90081446,114030.0,114020.0,0.00877]
[1757594802012,1.83473723,114030.0,114020.0,0.00877]
[1757594802513,1.83529723,114030.0,114020.0,0.00877]
[1757594802709,0.76465723,114030.0,114020.0,0.05781]
[1757594802920,0.76465723,114030.0,114020.0,0.12058688]
[1757594803126,1.58493723,114030.0,114020.0,0.12058688]
[1757594803623,0.0167,114030.0,114020.0,0.25774411]
[1757594803817,0.0167,114030.0,114020.0,0.12058688]
[1757594804016,1.57079723,114030.0,114020.0,0.44496723]
[1757594804223,1.58437723,114030.0,114020.0,0.2735822]
[1757594804416,1.58437723,114030.0,114020.0,0.13642497]
[1757594804720,1.58437723,114030.0,114020.0,0.05781]
[1757594805424,1.58437723,114030.0,114020.0,0.13642497]
[1757594805824,1.58389723,114030.0,114020.0,0.13642497]
[1757594806029,1.44674,114030.0,114020.0,0.13642497]
[1757594806219,1.58389723,114030.0,114020.0,0.2735822]
[1757594806721,1.58389723,114030.0,114020.0,0.19496723]
[1757594807123,1.58389723,114030.0,114020.0,0.05781]
[1757594807318,0.51465723,114030.0,114020.0,0.19496723]
[1757594807623,1.0843,114030.0,114020.0,0.58212446]
[1757594807821,0.003,114030.0,114020.0,0.94292446]
[1757594808128,1.07044,114030.0,114020.0,1.05342986]
[1757594808529,0.003,114030.0,114020.0,1.05342986]
[1757594808827,0.003,114030.0,114020.0,1.14111206]
[1757594809413,0.003,114030.0,114020.0,1.05342986]
[1757594809617,0.003,114030.0,114020.0,1.05308483]
[1757594809818,0.003,114030.0,114020.0,1.0617135]
[1757594810214,0.003,114030.0,114020.0,1.05308483]
[1757594810421,0.003,114030.0,114020.0,0.80308483]
[1757594810626,0.0167,114030.0,114020.0,0.77877037]
[1757594810925,0.0167,114030.0,114020.0,1.05308483]
[1757594811325,0.0167,114030.0,114020.0,0.77877037]
[1757594811529,0.003,114030.0,114020.0,1.05308483]
[1757594812529,0.003,114030.0,114020.0,1.10933001]
[1757594813019,1.06716,114030.0,114020.0,1.10933001]
[1757594813224,1.06716,114030.0,114020.0,1.02164781]
[1757594813426,1.06716,114030.0,114020.0,1.10933001]
[1757594813621,0.003,114030.0,114020.0,1.02164781]
[1757594813931,0.003,114030.0,114020.0,1.10933001]
[1757594814224,0.003,114030.0,114020.0,1.73648724]
[1757594814424,0.01800522,114050.0,114020.0,1.64880504]
[1757594814619,1.08124522,114050.0,114040.0,0.76373781]
[1757594814824,0.01800522,114050.0,114040.0,0.76372969]
[1757594815031,1.08096522,114050.0,114040.0,0.79517483]
[1757594815732,1.08396522,114050.0,114040.0,0.79517483]
[1757594816131,1.08696522,114050.0,114040.0,0.79517483]
[1757594816428,1.08696522,114050.0,114040.0,0.80393483]
[1757594816625,0.02100522,114050.0,114040.0,0.8826331]
[1757594816829,0.02300522,114050.0,114040.0,1.16473483]
[1757594817031,0.02300522,114050.0,114040.0,1.05457446]
[1757594817430,0.005,114050.0,114040.0,1.05457446]
[1757594817821,0.49795723,114080.0,114070.0,0.01816]
[1757594818024,1.71223446,114080.0,114070.0,0.11284315]
[1757594818424,1.43792,114080.0,114070.0,0.08110315]
[1757594818737,1.43792,114080.0,114070.0,0.01816]
[1757594818923,1.43792,114080.0,114060.0,0.08110315]
[1757594818924,1.62058576,114080.0,114060.0,0.08110315]
[1757594819128,0.46777288,114070.0,114060.0,0.06294315]
[1757594819528,0.47654525,114070.0,114060.0,0.06294315]
[1757594820128,0.72654525,114070.0,114060.0,0.06294315]
[1757594820333,0.02541,114060.0,114050.0,0.06294315]
[1757594820532,1.62831576,114060.0,114040.0,0.08986315]
[1757594820727,1.62831576,114060.0,114040.0,0.05866]
[1757594820728,0.46777288,114050.0,114040.0,0.05866]
[1757594821127,0.37644,114050.0,114040.0,0.05866]
[1757594821327,0.01564,114050.0,114040.0,0.05866]
[1757594821529,1.05872,114050.0,114040.0,0.30424493]
[1757594821829,1.07436,114050.0,114040.0,0.12157917]
[1757594822228,1.07436,114050.0,114040.0,0.21291205]
[1757594822624,1.07436,114050.0,114040.0,0.12157917]
[1757594822936,1.43516,114050.0,114040.0,0.21491205]
[1757594823529,1.07436,114050.0,114040.0,0.21591205]